[Event "*** Titled Tuesday Blitz"]
[Site "Chess.com"]
[Date "2020.04.28"]
[Round "7"]
[White "MarcoCorvi"]
[Black "crazy_but_lazy"]
[Result "0-1"]
[WhiteElo "2188"]
[BlackElo "2358"]
[TimeControl "180+1"]
[EndTime "11:20:09 PDT"]
[Termination "crazy_but_lazy won on time"]

1. c4 {[%clk 0:03:00.9]} 1... e5 {[%clk 0:02:57.6]} 2. Nc3 {[%clk 0:03:00.4]}
2... Nf6 {[%clk 0:02:56.1]} 3. Nf3 {[%clk 0:02:57]} 3... Nc6 {[%clk 0:02:55.3]}
4. e3 {[%clk 0:02:57.3]} 4... Bb4 {[%clk 0:02:54.9]} 5. Qc2 {[%clk 0:02:53.1]}
5... O-O {[%clk 0:02:42]} 6. Nd5 {[%clk 0:02:52.3]} 6... Re8 {[%clk 0:02:08.2]}
7. Qf5 {[%clk 0:02:51.5]} 7... d6 {[%clk 0:02:08.4]} 8. Nxf6+ {[%clk 0:02:50.2]}
8... Qxf6 {[%clk 0:02:08.6]} 9. Qxf6 {[%clk 0:02:50.1]} 9... gxf6 {[%clk
0:02:09.5]} 10. a3 {[%clk 0:02:50.2]} 10... Ba5 {[%clk 0:02:08.4]} 11. b4 {[%clk
0:02:50.3]} 11... Bb6 {[%clk 0:02:08.7]} 12. Bb2 {[%clk 0:02:50.4]} 12... a5
{[%clk 0:02:08.7]} 13. b5 {[%clk 0:02:50.5]} 13... Ne7 {[%clk 0:02:08.7]} 14.
Be2 {[%clk 0:02:50.7]} 14... Ng6 {[%clk 0:02:08.2]} 15. O-O {[%clk 0:02:50]}
15... Be6 {[%clk 0:02:08.2]} 16. d4 {[%clk 0:02:47.5]} 16... a4 {[%clk
0:02:01.1]} 17. Rfd1 {[%clk 0:02:44.9]} 17... Kg7 {[%clk 0:01:54.1]} 18. Rac1
{[%clk 0:02:44.3]} 18... Rad8 {[%clk 0:01:45.4]} 19. Kf1 {[%clk 0:02:42.2]}
19... Ba5 {[%clk 0:01:32.9]} 20. Bc3 {[%clk 0:02:32.2]} 20... Bxc3 {[%clk
0:01:30.6]} 21. Rxc3 {[%clk 0:02:33.1]} 21... f5 {[%clk 0:01:27.7]} 22. c5
{[%clk 0:02:25.2]} 22... f4 {[%clk 0:01:14.7]} 23. cxd6 {[%clk 0:02:10.7]} 23...
fxe3 {[%clk 0:01:04]} 24. dxe5 {[%clk 0:02:02.3]} 24... cxd6 {[%clk 0:01:00.2]}
25. Rxd6 {[%clk 0:01:58.7]} 25... exf2 {[%clk 0:00:57.3]} 26. Rxd8 {[%clk
0:01:52.5]} 26... Rxd8 {[%clk 0:00:57.1]} 27. Kxf2 {[%clk 0:01:52]} 27... Nf4
{[%clk 0:00:56.4]} 28. Rc2 {[%clk 0:01:39.9]} 28... Nd5 {[%clk 0:00:41.6]} 29.
Nd4 {[%clk 0:01:28.4]} 29... Nf4 {[%clk 0:00:33.6]} 30. Nxe6+ {[%clk 0:01:27.2]}
30... Nxe6 {[%clk 0:00:33.9]} 31. Bf3 {[%clk 0:01:23.7]} 31... Rd3 {[%clk
0:00:30.6]} 32. Ra2 {[%clk 0:01:07.5]} 32... b6 {[%clk 0:00:27.7]} 33. Bc6
{[%clk 0:01:01.9]} 33... Rb3 {[%clk 0:00:22.9]} 34. h3 {[%clk 0:00:48.2]} 34...
Nd4 {[%clk 0:00:21.5]} 35. Kg1 {[%clk 0:00:46.4]} 35... Nxb5 {[%clk 0:00:18.9]}
36. Bxb5 {[%clk 0:00:44.7]} 36... Rxb5 {[%clk 0:00:19.8]} 37. Re2 {[%clk
0:00:41.6]} 37... Rb3 {[%clk 0:00:18.9]} 38. e6 {[%clk 0:00:41.4]} 38... fxe6
{[%clk 0:00:18.9]} 39. Rxe6 {[%clk 0:00:42.3]} 39... b5 {[%clk 0:00:19.6]} 40.
Rb6 {[%clk 0:00:41.9]} 40... h5 {[%clk 0:00:16.9]} 41. h4 {[%clk 0:00:40.2]}
41... Kf7 {[%clk 0:00:14.4]} 42. Kh2 {[%clk 0:00:40]} 42... Ke7 {[%clk
0:00:13.8]} 43. g3 {[%clk 0:00:39.9]} 43... Kd7 {[%clk 0:00:13.9]} 44. Kh3
{[%clk 0:00:39.7]} 44... Kc7 {[%clk 0:00:14.3]} 45. Rh6 {[%clk 0:00:39.5]} 45...
Rxa3 {[%clk 0:00:14.7]} 46. Rxh5 {[%clk 0:00:40.2]} 46... b4 {[%clk 0:00:15.3]}
47. Rb5 {[%clk 0:00:39.2]} 47... b3 {[%clk 0:00:15.6]} 48. h5 {[%clk 0:00:38.8]}
48... Ra1 {[%clk 0:00:16]} 49. Kg2 {[%clk 0:00:26.6]} 49... Re1 {[%clk
0:00:14.3]} 50. h6 {[%clk 0:00:25.2]} 50... Re8 {[%clk 0:00:10.8]} 51. Rb4
{[%clk 0:00:22.3]} 51... Ra8 {[%clk 0:00:07.3]} 52. h7 {[%clk 0:00:20.8]} 52...
a3 {[%clk 0:00:07.6]} 53. Rxb3 {[%clk 0:00:19.8]} 53... a2 {[%clk 0:00:08.1]}
54. Ra3 {[%clk 0:00:19.9]} 54... Rxa3 {[%clk 0:00:07]} 55. h8=Q {[%clk
0:00:19.5]} 55... a1=Q {[%clk 0:00:07.6]} 56. Qh7+ {[%clk 0:00:17.6]} 56... Kd6
{[%clk 0:00:05.8]} 57. Qg6+ {[%clk 0:00:17]} 57... Ke7 {[%clk 0:00:06]} 58. Qh7+
{[%clk 0:00:16.5]} 58... Kf8 {[%clk 0:00:05.6]} 59. Qf5+ {[%clk 0:00:14.7]}
59... Ke7 {[%clk 0:00:04.9]} 60. Qe4+ {[%clk 0:00:13.9]} 60... Kf6 {[%clk
0:00:04.7]} 61. Qc6+ {[%clk 0:00:10.9]} 61... Ke5 {[%clk 0:00:04.5]} 62. Qc5+
{[%clk 0:00:10.7]} 62... Ke4 {[%clk 0:00:04.9]} 63. Qc6+ {[%clk 0:00:09.5]}
63... Kd3 {[%clk 0:00:04.5]} 64. Qf3+ {[%clk 0:00:09.4]} 64... Kc4 {[%clk
0:00:04.3]} 65. Qe4+ {[%clk 0:00:09.3]} 65... Qd4 {[%clk 0:00:03.3]} 66. Qe6+
{[%clk 0:00:09.2]} 66... Kb4 {[%clk 0:00:02.7]} 67. Qe1+ {[%clk 0:00:07.3]}
67... Kc5 {[%clk 0:00:02.8]} 68. Qc1+ {[%clk 0:00:06.5]} 68... Rc3 {[%clk
0:00:02.8]} 69. Qg5+ {[%clk 0:00:06.5]} 69... Kc4 {[%clk 0:00:03.5]} 70. Qc1
{[%clk 0:00:01.3]} 70... Kd3 {[%clk 0:00:04.4]} 71. Kh3 {[%clk 0:00:01.3]} 71...
Rxc1 {[%clk 0:00:04.4]} 0-1

[Event "*** Titled Tuesday Blitz"]
[Site "Chess.com"]
[Date "2020.04.28"]
[Round "7"]
[White "nabukatnezarr"]
[Black "madalin18"]
[Result "0-1"]
[WhiteElo "2510"]
[BlackElo "2145"]
[TimeControl "180+1"]
[EndTime "11:20:12 PDT"]
[Termination "madalin18 won by checkmate"]

1. e4 {[%clk 0:02:19.6]} 1... c5 {[%clk 0:02:59.4]} 2. Nf3 {[%clk 0:02:19.4]}
2... d6 {[%clk 0:02:59.3]} 3. d4 {[%clk 0:02:19.9]} 3... cxd4 {[%clk 0:02:59.2]}
4. Nxd4 {[%clk 0:02:20.8]} 4... Nf6 {[%clk 0:02:59.2]} 5. Bc4 {[%clk 0:02:21.4]}
5... e6 {[%clk 0:02:53.4]} 6. O-O {[%clk 0:02:20.2]} 6... Be7 {[%clk 0:02:48.8]}
7. Bd3 {[%clk 0:02:17.7]} 7... O-O {[%clk 0:02:48.1]} 8. c4 {[%clk 0:02:17.2]}
8... Nc6 {[%clk 0:02:41.4]} 9. Be3 {[%clk 0:02:11.8]} 9... d5 {[%clk 0:02:32]}
10. exd5 {[%clk 0:01:58.3]} 10... exd5 {[%clk 0:02:31.8]} 11. c5 {[%clk
0:01:58.6]} 11... Ne5 {[%clk 0:02:07.4]} 12. Nb3 {[%clk 0:01:52.7]} 12... Nxd3
{[%clk 0:01:57.2]} 13. Qxd3 {[%clk 0:01:53.6]} 13... Ng4 {[%clk 0:01:53.4]} 14.
Bd4 {[%clk 0:01:51.5]} 14... Bf6 {[%clk 0:01:53]} 15. h3 {[%clk 0:01:43]} 15...
Ne5 {[%clk 0:01:51.2]} 16. Bxe5 {[%clk 0:01:38.5]} 16... Bxe5 {[%clk 0:01:50.5]}
17. Rd1 {[%clk 0:01:38.9]} 17... Bxb2 {[%clk 0:01:48.1]} 18. Nc3 {[%clk
0:01:36.8]} 18... Bxa1 {[%clk 0:01:47.6]} 19. Rxa1 {[%clk 0:01:37.7]} 19... Be6
{[%clk 0:01:44.4]} 20. Rd1 {[%clk 0:01:29.1]} 20... b6 {[%clk 0:01:42.7]} 21.
Qd4 {[%clk 0:01:27.6]} 21... bxc5 {[%clk 0:01:40.1]} 22. Nxc5 {[%clk 0:01:28.5]}
22... Qb6 {[%clk 0:01:34.8]} 23. Rb1 {[%clk 0:01:20.8]} 23... Qc6 {[%clk
0:01:22.1]} 24. N3a4 {[%clk 0:00:51.3]} 24... Rab8 {[%clk 0:01:19]} 25. Re1
{[%clk 0:00:51.8]} 25... Rfe8 {[%clk 0:01:13.7]} 26. h4 {[%clk 0:00:49.5]} 26...
Qb5 {[%clk 0:01:11.8]} 27. h5 {[%clk 0:00:42]} 27... Qc4 {[%clk 0:01:11.1]} 28.
Qd1 {[%clk 0:00:24.9]} 28... d4 {[%clk 0:01:03.6]} 29. h6 {[%clk 0:00:22.3]}
29... g6 {[%clk 0:01:02.3]} 30. Qf3 {[%clk 0:00:20]} 30... Bf5 {[%clk
0:00:49.6]} 31. Rxe8+ {[%clk 0:00:19.6]} 31... Rxe8 {[%clk 0:00:48.8]} 32. Qc6
{[%clk 0:00:20.1]} 32... Qc1+ {[%clk 0:00:40.9]} 33. Kh2 {[%clk 0:00:17.7]}
33... Qf4+ {[%clk 0:00:39.7]} 34. g3 {[%clk 0:00:13.1]} 34... Qxf2+ {[%clk
0:00:39.1]} 35. Qg2 {[%clk 0:00:13.6]} 35... Qxg2+ {[%clk 0:00:38]} 36. Kxg2
{[%clk 0:00:14.5]} 36... Re2+ {[%clk 0:00:38.4]} 37. Kf3 {[%clk 0:00:14.2]}
37... Rxa2 {[%clk 0:00:38]} 38. g4 {[%clk 0:00:12.8]} 38... Be6 {[%clk
0:00:37.2]} 39. Ke4 {[%clk 0:00:10.6]} 39... f5+ {[%clk 0:00:36.6]} 40. gxf5
{[%clk 0:00:08.9]} 40... Bxf5+ {[%clk 0:00:35.9]} 41. Kxd4 {[%clk 0:00:09.5]}
41... g5 {[%clk 0:00:35.4]} 42. Ke5 {[%clk 0:00:08.9]} 42... Rf2 {[%clk
0:00:34.8]} 43. Nc3 {[%clk 0:00:08.9]} 43... g4 {[%clk 0:00:34.4]} 44. Nd5
{[%clk 0:00:08.8]} 44... Kf7 {[%clk 0:00:30.7]} 45. Ne3 {[%clk 0:00:06.6]} 45...
Bc8 {[%clk 0:00:29]} 46. Ne4 {[%clk 0:00:06.5]} 46... Re2 {[%clk 0:00:20.6]} 47.
Kf4 {[%clk 0:00:06.9]} 47... Rxe3 {[%clk 0:00:18.2]} 48. Kxe3 {[%clk 0:00:07.8]}
48... Kg6 {[%clk 0:00:17.7]} 49. Kf4 {[%clk 0:00:08]} 49... a5 {[%clk 0:00:17]}
50. Nd6 {[%clk 0:00:07]} 50... Bd7 {[%clk 0:00:16]} 51. Nc4 {[%clk 0:00:06.8]}
51... a4 {[%clk 0:00:15.9]} 52. Ne5+ {[%clk 0:00:07.4]} 52... Kh5 {[%clk
0:00:12.3]} 53. Nxd7 {[%clk 0:00:08.3]} 53... a3 {[%clk 0:00:11.5]} 54. Nc5
{[%clk 0:00:08.3]} 54... a2 {[%clk 0:00:11.5]} 55. Nb3 {[%clk 0:00:07.9]} 55...
Kh4 {[%clk 0:00:11.8]} 56. Ke3 {[%clk 0:00:04.1]} 56... g3 {[%clk 0:00:11.9]}
57. Ke2 {[%clk 0:00:04]} 57... Kh3 {[%clk 0:00:11.9]} 58. Nd2 {[%clk 0:00:03.4]}
58... g2 {[%clk 0:00:10.7]} 59. Kf3 {[%clk 0:00:04.3]} 59... a1=Q {[%clk
0:00:08.9]} 60. Kf4 {[%clk 0:00:05.2]} 60... Qd4+ {[%clk 0:00:08.3]} 61. Kf5
{[%clk 0:00:05.9]} 61... Qxd2 {[%clk 0:00:08.3]} 62. Kf6 {[%clk 0:00:06]} 62...
Qxh6+ {[%clk 0:00:08.2]} 63. Kf7 {[%clk 0:00:06.9]} 63... Qg6+ {[%clk
0:00:08.1]} 64. Ke7 {[%clk 0:00:06.8]} 64... Kg4 {[%clk 0:00:07.3]} 65. Kd7
{[%clk 0:00:07.7]} 65... Kf5 {[%clk 0:00:07]} 66. Kc7 {[%clk 0:00:08.6]} 66...
Qa6 {[%clk 0:00:05.4]} 67. Kd7 {[%clk 0:00:08.5]} 67... Ke5 {[%clk 0:00:05.6]}
68. Ke7 {[%clk 0:00:09.4]} 68... Qb7+ {[%clk 0:00:05.1]} 69. Kf8 {[%clk
0:00:10.3]} 69... Kf6 {[%clk 0:00:05]} 70. Kg8 {[%clk 0:00:11]} 70... Qg7#
{[%clk 0:00:05.1]} 0-1

[Event "*** Titled Tuesday Blitz"]
[Site "Chess.com"]
[Date "2020.04.28"]
[Round "7"]
[White "Karina_Ivanova"]
[Black "TheMightyBishops"]
[Result "0-1"]
[WhiteElo "2190"]
[BlackElo "2014"]
[TimeControl "180+1"]
[EndTime "11:20:19 PDT"]
[Termination "TheMightyBishops won on time"]

1. d4 {[%clk 0:03:00]} 1... d6 {[%clk 0:02:55.7]} 2. Nf3 {[%clk 0:02:58.8]} 2...
Nd7 {[%clk 0:02:52.6]} 3. g3 {[%clk 0:02:57.2]} 3... Ngf6 {[%clk 0:02:52]} 4.
Bg2 {[%clk 0:02:57]} 4... e5 {[%clk 0:02:52.3]} 5. O-O {[%clk 0:02:54.9]} 5...
Be7 {[%clk 0:02:49.2]} 6. c4 {[%clk 0:02:54.3]} 6... c6 {[%clk 0:02:48.1]} 7.
Nc3 {[%clk 0:02:54.1]} 7... e4 {[%clk 0:02:40]} 8. Nd2 {[%clk 0:02:48.9]} 8...
d5 {[%clk 0:02:39.9]} 9. e3 {[%clk 0:02:44]} 9... h5 {[%clk 0:02:38.2]} 10. h4
{[%clk 0:02:42.9]} 10... Ng4 {[%clk 0:02:35]} 11. cxd5 {[%clk 0:02:40.7]} 11...
f5 {[%clk 0:02:27.3]} 12. dxc6 {[%clk 0:02:39.1]} 12... bxc6 {[%clk 0:02:27]}
13. d5 {[%clk 0:02:36.8]} 13... Bxh4 {[%clk 0:02:15.1]} 14. Nc4 {[%clk
0:02:35.8]} 14... Ba6 {[%clk 0:01:59.7]} 15. Nd6+ {[%clk 0:02:35.1]} 15... Kf8
{[%clk 0:01:57]} 16. Nxf5 {[%clk 0:02:34.9]} 16... Bxf1 {[%clk 0:01:56.7]} 17.
Kxf1 {[%clk 0:02:22.8]} 17... Bf6 {[%clk 0:01:49.9]} 18. Bxe4 {[%clk 0:02:15.8]}
18... Nc5 {[%clk 0:01:23.2]} 19. Bg2 {[%clk 0:02:07.7]} 19... Qa5 {[%clk
0:01:18.5]} 20. Bd2 {[%clk 0:01:41.4]} 20... Qa6+ {[%clk 0:01:13.4]} 21. Kg1
{[%clk 0:01:38]} 21... Rb8 {[%clk 0:00:34.2]} 22. Qc2 {[%clk 0:01:27.4]} 22...
Nd3 {[%clk 0:00:32.4]} 23. Nd1 {[%clk 0:01:13.2]} 23... cxd5 {[%clk 0:00:24.4]}
24. Bf1 {[%clk 0:01:09.9]} 24... Nge5 {[%clk 0:00:18.5]} 25. f4 {[%clk 0:00:58]}
25... Nf3+ {[%clk 0:00:10.1]} 26. Kh1 {[%clk 0:00:49.3]} 26... Nxd2 {[%clk
0:00:09]} 27. Qxd2 {[%clk 0:00:49.2]} 27... d4 {[%clk 0:00:07.4]} 28. Bxd3
{[%clk 0:00:47.6]} 28... Qb7+ {[%clk 0:00:07.6]} 29. e4 {[%clk 0:00:46.3]} 29...
h4 {[%clk 0:00:07.9]} 30. g4 {[%clk 0:00:45.3]} 30... h3 {[%clk 0:00:06.9]} 31.
g5 {[%clk 0:00:38.9]} 31... Bd8 {[%clk 0:00:06.7]} 32. b3 {[%clk 0:00:30.1]}
32... Kg8 {[%clk 0:00:04.9]} 33. Qc3 {[%clk 0:00:29]} 33... dxc3 {[%clk
0:00:04]} 34. Bc4+ {[%clk 0:00:29]} 34... Kh7 {[%clk 0:00:04.1]} 35. Bd5 {[%clk
0:00:28]} 35... Qb5 {[%clk 0:00:02]} 36. Nxc3 {[%clk 0:00:27]} 36... Qe2 {[%clk
0:00:02.6]} 37. Nxe2 {[%clk 0:00:26.5]} 37... Kg6 {[%clk 0:00:02.2]} 38. Ned4
{[%clk 0:00:20]} 38... Bb6 {[%clk 0:00:02.8]} 39. Rc1 {[%clk 0:00:18.9]} 39...
Bxd4 {[%clk 0:00:02.8]} 40. Nxd4 {[%clk 0:00:18.5]} 40... Kh5 {[%clk 0:00:03.1]}
41. Kh2 {[%clk 0:00:18]} 41... Kg4 {[%clk 0:00:03.3]} 42. Ne2 {[%clk 0:00:15.9]}
42... Kf3 {[%clk 0:00:03.4]} 43. Bc4 {[%clk 0:00:14.3]} 43... Kxe4 {[%clk
0:00:03.1]} 44. Rg1 {[%clk 0:00:13.4]} 44... Rh4 {[%clk 0:00:02.7]} 45. Rg3
{[%clk 0:00:12.9]} 45... Rd8 {[%clk 0:00:03.2]} 46. Rxh3 {[%clk 0:00:11.9]}
46... Rg4 {[%clk 0:00:03.5]} 47. Rg3 {[%clk 0:00:11.5]} 47... Rh4+ {[%clk
0:00:03.1]} 48. Kg2 {[%clk 0:00:09]} 48... Rd2 {[%clk 0:00:03.6]} 49. Kf2 {[%clk
0:00:05]} 49... Rxf4+ {[%clk 0:00:03.7]} 50. Ke1 {[%clk 0:00:02.2]} 50... Rxe2+
{[%clk 0:00:03.7]} 51. Bxe2 {[%clk 0:00:01.9]} 51... Rh4 {[%clk 0:00:04.4]} 52.
Kd2 {[%clk 0:00:02.2]} 52... Rh2 {[%clk 0:00:04.6]} 53. Re3+ {[%clk 0:00:02.9]}
53... Kf4 {[%clk 0:00:04.8]} 54. g6 {[%clk 0:00:03.3]} 54... Kf5 {[%clk
0:00:04.7]} 55. Re7 {[%clk 0:00:03.4]} 55... Kxg6 {[%clk 0:00:03.7]} 56. Rxa7
{[%clk 0:00:03.2]} 56... Kf6 {[%clk 0:00:04.6]} 57. Ra6+ {[%clk 0:00:03.1]}
57... Ke7 {[%clk 0:00:03.8]} 58. Ra5 {[%clk 0:00:04]} 58... Kf6 {[%clk
0:00:03.9]} 59. Rc5 {[%clk 0:00:03.9]} 59... g5 {[%clk 0:00:04.8]} 0-1

[Event "*** Titled Tuesday Blitz"]
[Site "Chess.com"]
[Date "2020.04.28"]
[Round "7"]
[White "Stormeman100100"]
[Black "davigator"]
[Result "1-0"]
[WhiteElo "2520"]
[BlackElo "2389"]
[TimeControl "180+1"]
[EndTime "11:20:24 PDT"]
[Termination "Stormeman100100 won by checkmate"]

1. e4 {[%clk 0:03:00.9]} 1... c5 {[%clk 0:02:58.6]} 2. Nf3 {[%clk 0:03:00.1]}
2... Nc6 {[%clk 0:02:58.7]} 3. d4 {[%clk 0:02:56.9]} 3... cxd4 {[%clk
0:02:58.6]} 4. Nxd4 {[%clk 0:02:57.8]} 4... Nf6 {[%clk 0:02:58.5]} 5. Nc3 {[%clk
0:02:54.6]} 5... d6 {[%clk 0:02:58.9]} 6. Bg5 {[%clk 0:02:52.2]} 6... a6 {[%clk
0:02:54.3]} 7. Qd2 {[%clk 0:02:50.2]} 7... e6 {[%clk 0:02:51.6]} 8. O-O-O {[%clk
0:02:48.9]} 8... Bd7 {[%clk 0:02:51.2]} 9. f4 {[%clk 0:02:47.3]} 9... h6 {[%clk
0:02:50.3]} 10. Bh4 {[%clk 0:02:43.2]} 10... g5 {[%clk 0:02:49.8]} 11. fxg5
{[%clk 0:02:38.9]} 11... Ng4 {[%clk 0:02:50.5]} 12. Nxc6 {[%clk 0:02:29.4]}
12... Bxc6 {[%clk 0:02:47.9]} 13. Qf4 {[%clk 0:02:28.4]} 13... Ne5 {[%clk
0:02:43.7]} 14. Kb1 {[%clk 0:02:08.8]} 14... Be7 {[%clk 0:02:42.5]} 15. Qe3
{[%clk 0:01:57.7]} 15... hxg5 {[%clk 0:02:41.5]} 16. Bg3 {[%clk 0:01:57.3]}
16... Qc7 {[%clk 0:02:39]} 17. Be2 {[%clk 0:01:56]} 17... O-O-O {[%clk
0:02:35.3]} 18. Rhf1 {[%clk 0:01:54.9]} 18... Rh7 {[%clk 0:02:33.2]} 19. h3
{[%clk 0:01:53.8]} 19... Kb8 {[%clk 0:02:32.6]} 20. Rd2 {[%clk 0:01:49.7]} 20...
Rg8 {[%clk 0:02:20.5]} 21. Bg4 {[%clk 0:01:39.2]} 21... Bd7 {[%clk 0:02:17.9]}
22. Rfd1 {[%clk 0:01:34.5]} 22... Bc8 {[%clk 0:02:14]} 23. Qg1 {[%clk
0:01:22.3]} 23... Rd8 {[%clk 0:02:03.3]} 24. Be2 {[%clk 0:01:20]} 24... Bd7
{[%clk 0:01:58.1]} 25. Qh2 {[%clk 0:01:19.5]} 25... f6 {[%clk 0:01:51]} 26. a3
{[%clk 0:01:16.3]} 26... Bc6 {[%clk 0:01:41.6]} 27. Qg1 {[%clk 0:01:14.6]} 27...
Rc8 {[%clk 0:01:27.6]} 28. Qd4 {[%clk 0:01:09.2]} 28... b5 {[%clk 0:01:24.7]}
29. Bf2 {[%clk 0:01:07.1]} 29... Qb7 {[%clk 0:01:24.8]} 30. Qe3 {[%clk
0:00:58.2]} 30... Rhh8 {[%clk 0:01:23.9]} 31. Rxd6 {[%clk 0:00:57.8]} 31... Bxd6
{[%clk 0:01:22.3]} 32. Rxd6 {[%clk 0:00:58.7]} 32... Rhe8 {[%clk 0:01:21.9]} 33.
Na2 {[%clk 0:00:50.2]} 33... Kc7 {[%clk 0:01:14.1]} 34. Qc5 {[%clk 0:00:43.1]}
34... Nd7 {[%clk 0:01:14.2]} 35. Qd4 {[%clk 0:00:28.8]} 35... e5 {[%clk
0:01:12.2]} 36. Qd2 {[%clk 0:00:28.2]} 36... Rcd8 {[%clk 0:01:10.3]} 37. Nb4
{[%clk 0:00:27.8]} 37... Nb6 {[%clk 0:01:05.6]} 38. Bxb6+ {[%clk 0:00:21.7]}
38... Qxb6 {[%clk 0:01:05.8]} 39. Rxd8 {[%clk 0:00:19.2]} 39... Rxd8 {[%clk
0:01:05.2]} 40. Qc3 {[%clk 0:00:19.7]} 40... Kb7 {[%clk 0:00:59.9]} 41. Bd3
{[%clk 0:00:18.4]} 41... Rc8 {[%clk 0:00:54.7]} 42. Qb3 {[%clk 0:00:17.5]} 42...
Bd7 {[%clk 0:00:53.6]} 43. Qf7 {[%clk 0:00:17.1]} 43... Qd6 {[%clk 0:00:49]} 44.
Nd5 {[%clk 0:00:16.8]} 44... Kb8 {[%clk 0:00:47.7]} 45. Be2 {[%clk 0:00:16.8]}
45... Be6 {[%clk 0:00:46.8]} 46. Qxf6 {[%clk 0:00:16.2]} 46... Rd8 {[%clk
0:00:45.5]} 47. Bf3 {[%clk 0:00:12]} 47... Bxd5 {[%clk 0:00:44.9]} 48. Qxd6+
{[%clk 0:00:12.1]} 48... Rxd6 {[%clk 0:00:45.4]} 49. exd5 {[%clk 0:00:13]} 49...
Rf6 {[%clk 0:00:42]} 50. c3 {[%clk 0:00:13.3]} 50... Rf4 {[%clk 0:00:42.5]} 51.
Kc2 {[%clk 0:00:13.1]} 51... e4 {[%clk 0:00:42.6]} 52. Bg4 {[%clk 0:00:13.4]}
52... Rf2+ {[%clk 0:00:42.1]} 53. Kc1 {[%clk 0:00:12.6]} 53... Rxg2 {[%clk
0:00:42.6]} 54. b3 {[%clk 0:00:11.8]} 54... Kc7 {[%clk 0:00:42.4]} 55. c4 {[%clk
0:00:12.1]} 55... bxc4 {[%clk 0:00:42.5]} 56. bxc4 {[%clk 0:00:13]} 56... Kd6
{[%clk 0:00:42.8]} 57. Be6 {[%clk 0:00:11.6]} 57... Ra2 {[%clk 0:00:41.7]} 58.
c5+ {[%clk 0:00:09.3]} 58... Kxc5 {[%clk 0:00:40.8]} 59. d6 {[%clk 0:00:09.8]}
59... Rf2 {[%clk 0:00:35.9]} 60. d7 {[%clk 0:00:09.6]} 60... Rf8 {[%clk
0:00:35.2]} 61. Kd2 {[%clk 0:00:10]} 61... Kd6 {[%clk 0:00:33.1]} 62. Bg4 {[%clk
0:00:09.7]} 62... Ke7 {[%clk 0:00:28.5]} 63. Ke3 {[%clk 0:00:09.6]} 63... Rf1
{[%clk 0:00:25.6]} 64. Kxe4 {[%clk 0:00:08.4]} 64... Ra1 {[%clk 0:00:26.1]} 65.
Kf5 {[%clk 0:00:08.3]} 65... Rxa3 {[%clk 0:00:25.8]} 66. Kxg5 {[%clk 0:00:08.9]}
66... a5 {[%clk 0:00:23.6]} 67. h4 {[%clk 0:00:09.2]} 67... a4 {[%clk 0:00:24]}
68. h5 {[%clk 0:00:09.5]} 68... Ra1 {[%clk 0:00:24.4]} 69. h6 {[%clk 0:00:09.3]}
69... Rb1 {[%clk 0:00:20.9]} 70. d8=Q+ {[%clk 0:00:06.2]} 70... Kxd8 {[%clk
0:00:15.6]} 71. h7 {[%clk 0:00:06.8]} 71... Rb5+ {[%clk 0:00:15.3]} 72. Bf5
{[%clk 0:00:06.2]} 72... Kc7 {[%clk 0:00:11.9]} 73. h8=Q {[%clk 0:00:06.1]}
73... Kb6 {[%clk 0:00:12.4]} 74. Qf6+ {[%clk 0:00:05.8]} 74... Ka5 {[%clk
0:00:12.4]} 75. Qc3+ {[%clk 0:00:05.8]} 75... Kb6 {[%clk 0:00:10.5]} 76. Kf6
{[%clk 0:00:06.1]} 76... Rb3 {[%clk 0:00:09.5]} 77. Qd4+ {[%clk 0:00:06.3]}
77... Kb5 {[%clk 0:00:09.4]} 78. Bd7+ {[%clk 0:00:06.2]} 78... Ka5 {[%clk
0:00:07.1]} 79. Qc5+ {[%clk 0:00:06.3]} 79... Ka6 {[%clk 0:00:06.6]} 80. Bc8+
{[%clk 0:00:06.3]} 80... Rb7 {[%clk 0:00:03]} 81. Qc6+ {[%clk 0:00:06.2]} 81...
Ka5 {[%clk 0:00:02.9]} 82. Qxb7 {[%clk 0:00:06.3]} 82... a3 {[%clk 0:00:02.7]}
83. Bd7 {[%clk 0:00:06.4]} 83... a2 {[%clk 0:00:02.9]} 84. Qb5# {[%clk
0:00:07.2]} 1-0